fUST/lending_fUST_20250206
["ID","MTS","AMOUNT","RATE_DAILY","PERIOD"]
[351912447,1738837847903,-151.0,0.00014246,2]
[351912448,1738837847913,-1119.66,0.00014246,2]
[351912449,1738837847923,-500.0,0.00014246,2]
[351912450,1738837847934,-2210.45,0.00014246,2]
[351912451,1738837847944,-1367.52,0.00014246,2]
[351912452,1738837847955,-774.54,0.00014246,2]
[351912453,1738837847965,-1519.87,0.00014246,2]
[351912454,1738837847976,-684.83,0.00014246,2]
[351912455,1738837848128,-500.0,0.00014246,2]
[351912456,1738837848138,-500.0,0.00014246,2]
[351912457,1738837848150,-500.0,0.00014246,2]
[351912458,1738837848161,-500.0,0.00014246,2]
[351912459,1738837848171,-500.0,0.00014246,2]
[351912460,1738837848181,-500.0,0.00014246,2]
[351912461,1738837848192,-789.91,0.00014246,2]
[351912462,1738837848202,-500.0,0.00014246,2]
[351912463,1738837848212,-500.0,0.00014246,2]
[351912464,1738837848222,-500.0,0.00014246,2]
[351912465,1738837848232,-500.0,0.00014246,2]
[351912466,1738837848242,-678.4,0.00014246,2]
[351912467,1738837848253,-841.31,0.00014246,2]
[351912468,1738837848263,-500.0,0.00014246,2]
[351912469,1738837848273,-151.0,0.00014246,2]
[351912470,1738837848284,-500.0,0.00014246,2]
[351912471,1738837848295,-500.0,0.00014246,2]
[351912472,1738837848307,-3595.31,0.00014246,2]
[351912473,1738837848317,-500.0,0.00014246,2]
[351912474,1738837848328,-795.3,0.00014246,2]
[351912475,1738837848338,-500.0,0.00014246,2]
[351912476,1738837848348,-686.01,0.00014246,2]
[351912477,1738837848359,-151.0,0.00014246,2]
[351912478,1738837848369,-1580.08,0.00014246,2]
[351912479,1738837848381,-3472.17,0.00014246,2]
[351912480,1738837848391,-3236.78,0.00014246,2]
[351912481,1738837848402,-807.318433,0.00014246,2]
[351912482,1738837848412,-151.0,0.00014246,2]
[351912483,1738837848422,-837.57,0.00014246,2]
[351912484,1738837848432,-807.318433,0.00014246,2]
[351912485,1738837848443,-1821.59,0.00014246,2]
[351912486,1738837848462,-1699.7,0.00014246,2]
[351912487,1738837848474,-151.0,0.00014246,2]
[351912488,1738837848485,-151.0,0.00014246,2]
[351912489,1738837848497,-842.83,0.00014246,2]
[351912490,1738837848507,-1348.98,0.00014246,2]
[351912491,1738837848518,-715.9,0.00014246,2]
[351912492,1738837848528,-9132.91,0.00014246,2]
[351912493,1738837848537,-500.0,0.00014246,2]
[351912494,1738837848548,-500.0,0.00014246,2]
[351912495,1738837848558,-3060.88,0.00014246,2]
[351912496,1738837848569,-528.5,0.00014246,2]
[351912497,1738837848579,-671.1,0.00014246,2]
[351912498,1738837848590,-500.0,0.00014246,2]
[351912499,1738837848600,-282.980097,0.00014246,2]
[351912500,1738837848610,-282.980097,0.00014246,2]
[351912501,1738837848621,-14374.97,0.00014246,2]
[351912502,1738837848630,-969.62,0.00014246,2]
[351912503,1738837848640,-500.0,0.00014246,2]
[351912504,1738837848650,-2118.22,0.00014246,2]
[351912505,1738837848660,-3205.51,0.00014246,2]
[351912506,1738837848671,-500.0,0.00014246,2]
[351912507,1738837848682,-500.0,0.00014246,2]
[351912508,1738837848693,-1305.12,0.00014246,2]
[351912509,1738837848705,-276.9926375,0.00014247,2]
[351912510,1738837848715,-1278.97486873,0.00014279,2]
[351912511,1738837848725,-2277.96,0.000143,2]
[351912512,1738837848735,-223.42664687,0.00014382,2]
[351912513,1738837848746,-500.0,0.00014383,2]
[351912514,1738837848757,-500.0,0.00014383,2]
[351912515,1738837848767,-438.32158017,0.00014383,2]
[351912516,1738837848778,-420.59588589,0.00014383,2]
[351912517,1738837848789,-500.0,0.00014383,2]
[351912518,1738837848799,-500.0,0.00014383,2]
[351912519,1738837848810,-151.0,0.00014383,2]
[351912520,1738837848820,-167.889512,0.00014383,2]
[351912521,1738837848830,-151.0,0.00014383,2]
[351912522,1738837848840,-536.45,0.00014383,2]
[351912523,1738837848849,-500.0,0.00014383,2]
[351912524,1738837848860,-500.0,0.00014383,2]
[351912525,1738837848869,-151.63316,0.00014383,2]
[351912526,1738837848879,-674.28,0.00014383,2]
[351912527,1738837848889,-807.6,0.00014383,2]
[351912528,1738837848900,-290.35269199,0.00014383,2]
[351912529,1738837848910,-500.0,0.00014383,2]
[351912530,1738837848919,-500.0,0.00014383,2]
[351912531,1738837848929,-500.0,0.00014383,2]
[351912532,1738837848939,-151.0,0.00014383,2]
[351912533,1738837848948,-731.83,0.00014383,2]
[351912534,1738837848958,-1246.55,0.00014383,2]
[351912535,1738837848968,-500.0,0.00014383,2]
[351912536,1738837848978,-1300.45,0.00014383,2]
[351912537,1738837848993,-611.22,0.00014383,2]
[351912538,1738837849003,-676.37,0.00014383,2]
[351912539,1738837849013,-500.0,0.00014383,2]
[351912540,1738837849022,-500.0,0.00014383,2]
[351912541,1738837849033,-909.47,0.00014383,2]
[351912542,1738837849046,-500.0,0.00014383,2]
[351912543,1738837849065,-1221.15,0.00014383,2]
[351912544,1738837849074,-1101.43,0.00014383,2]
[351912545,1738837849084,-582.14,0.00014383,2]
[351912546,1738837849094,-500.0,0.00014383,2]
[351912547,1738837849104,-500.0,0.00014383,2]
[351912548,1738837849114,-151.0,0.00014383,2]
[351912549,1738837849124,-500.0,0.00014383,2]
[351912550,1738837849134,-500.0,0.00014383,2]
[351912551,1738837849145,-1444.14,0.00014383,2]
[351912552,1738837849155,-656.79,0.00014383,2]
[351912553,1738837849164,-500.0,0.00014383,2]
[351912554,1738837849174,-500.0,0.00014383,2]
[351912555,1738837849183,-1101.97,0.00014383,2]
[351912556,1738837849194,-608.14,0.00014383,2]
[351912557,1738837849203,-151.0,0.00014383,2]
[351912558,1738837849212,-557.88,0.00014383,2]
[351912559,1738837849222,-534.02,0.00014383,2]
[351912560,1738837849232,-500.0,0.00014383,2]
[351912561,1738837849241,-500.0,0.00014383,2]
[351912562,1738837849251,-968.49,0.00014383,2]
[351912563,1738837849260,-1055.65,0.00014383,2]
[351912564,1738837849270,-3326.98,0.00014383,2]
[351912565,1738837849283,-500.0,0.00014383,2]
[351912566,1738837849295,-500.0,0.00014383,2]
[351912567,1738837849306,-8010.75,0.00014383,2]
[351912568,1738837849316,-500.0,0.00014383,2]
[351912569,1738837849327,-500.0,0.00014383,2]
[351912570,1738837849336,-778.67,0.00014383,2]
[351912571,1738837849345,-1186.98,0.00014383,2]
[351912572,1738837849356,-1247.5,0.00014383,2]
[351912573,1738837849365,-500.0,0.00014383,2]
[351912574,1738837849375,-500.0,0.00014383,2]
[351912575,1738837849384,-1509.8,0.00014383,2]
[351912576,1738837849393,-1243.99,0.00014383,2]
[351912577,1738837849403,-2087.82,0.00014383,2]
[351912578,1738837849412,-4258.69,0.00014383,2]
[351912579,1738837849421,-3000.20339574,0.00014383,2]
[351912580,1738837850081,-39540.09660426,0.00014383,2]
[351912581,1738837850093,-500.0,0.00014383,2]
[351912582,1738837850103,-2007.01,0.00014383,2]
[351912583,1738837850113,-2352.69,0.00014383,2]
[351912584,1738837850124,-746.56,0.00014383,2]
[351912585,1738837850136,-1423.82,0.00014383,2]
[351912586,1738837850146,-2875.32339576,0.00014383,2]
[351912587,1738837850553,-494.18,0.0001315,2]
[351912588,1738837850565,-305.82,0.0001315,2]
[351912589,1738837850574,-300.504507,0.00014109,2]
[351912590,1738837850584,-300.504507,0.00014246,2]
[351912591,1738837850594,-81.420986,0.00014383,2]
[351912592,1738837850609,-3024.18561824,0.00014383,2]
[351912593,1738837850619,-500.0,0.00014383,2]
[351912594,1738837850628,-1613.61,0.00014383,2]
[351912595,1738837850638,-252.11157265,0.00014383,2]
[351912596,1738837850648,-16755.47,0.00014383,2]
[351912597,1738837850657,-1119.66,0.00014383,2]
[351912598,1738837850667,-500.0,0.00014383,2]
[351912599,1738837850677,-2210.45,0.00014383,2]
[351912600,1738837850687,-1367.52,0.00014383,2]
[351912601,1738837850697,-774.54,0.00014383,2]
[351912602,1738837850706,-1519.87,0.00014383,2]
[351912603,1738837850715,-684.83,0.00014383,2]
[351912604,1738837850725,-500.0,0.00014383,2]
[351912605,1738837850735,-500.0,0.00014383,2]
[351912606,1738837850744,-500.0,0.00014383,2]
[351912607,1738837850754,-500.0,0.00014383,2]
[351912608,1738837850763,-500.0,0.00014383,2]
[351912609,1738837850772,-500.0,0.00014383,2]
[351912610,1738837850782,-789.91,0.00014383,2]
[351912611,1738837850791,-500.0,0.00014383,2]
[351912612,1738837850801,-500.0,0.00014383,2]
[351912613,1738837850810,-500.0,0.00014383,2]
[351912614,1738837850819,-500.0,0.00014383,2]
[351912615,1738837850829,-678.4,0.00014383,2]
[351912616,1738837850838,-23059.12896331,0.00014383,2]
[351912617,1738837850847,-841.31,0.00014383,2]
[351912618,1738837850856,-500.0,0.00014383,2]
[351912619,1738837850866,-500.0,0.00014383,2]
[351912620,1738837850875,-500.0,0.00014383,2]
[351912621,1738837850884,-346.18150994,0.00014383,2]
[351912622,1738837850897,-732.26371174,0.00014383,2]
[351912623,1738837850909,-2516.86477832,0.00014383,2]
[351912624,1738837850919,-500.0,0.00014383,2]
[351912625,1738837850929,-795.3,0.00014383,2]
[351912626,1738837850940,-500.0,0.00014383,2]
[351912627,1738837850949,-686.01,0.00014383,2]
[351912628,1738837850959,-1580.08,0.00014383,2]
[351912629,1738837850969,-3472.17,0.00014383,2]
[351912630,1738837850978,-456.23969545,0.00014383,2]
[351912631,1738837851232,-2780.54030455,0.00014383,2]
[351912632,1738837851426,-837.57,0.00014383,2]
[351912633,1738837851436,-1821.59,0.00014383,2]
[351912634,1738837851449,-1699.7,0.00014383,2]
[351912635,1738837851459,-842.83,0.00014383,2]
[351912636,1738837851469,-1348.98,0.00014383,2]
[351912637,1738837851479,-715.9,0.00014383,2]
[351912638,1738837851488,-9132.91,0.00014383,2]
[351912639,1738837851498,-500.0,0.00014383,2]
[351912640,1738837851508,-156.99000189,0.00014383,2]
[351912641,1738837851518,-3060.88,0.00014383,2]
[351912642,1738837851527,-528.5,0.00014383,2]
[351912643,1738837851536,-671.1,0.00014383,2]
[351912644,1738837851546,-500.0,0.00014383,2]
[351912645,1738837851555,-9193.92851729,0.00014383,2]
[351912646,1738837851567,-5181.04148271,0.00014383,2]
[351912647,1738837851576,-969.62,0.00014383,2]
[351912648,1738837851586,-500.0,0.00014383,2]
[351912649,1738837851595,-2118.22,0.00014383,2]
[351912650,1738837851605,-3205.51,0.00014383,2]
[351912651,1738837851615,-500.0,0.00014383,2]
[351912652,1738837851624,-500.0,0.00014383,2]
[351912653,1738837851634,-333.05661601,0.00014383,2]
[351912657,1738838161349,1600.0,0.000192,120]
[351912658,1738838846144,-248.03,0.00010959,2]
[351912659,1738838846168,-206.69,0.00010959,2]
[351912660,1738838846189,-172.24,0.00010959,2]
[351912661,1738838846209,-25.41751076,0.00010959,2]
[351912662,1738838947127,-2877.04327107,0.00010849,2]
[351912663,1738838947149,-753.67052893,0.00010959,2]
[351912664,1738838950129,-82.14196031,0.00010959,2]
[351912665,1738838950153,-542.8483003,0.00012578,2]
[351912666,1738838950179,-24345.9271441,0.00012642,2]
[351912667,1738838965113,-881.0298,0.00012054,2]
[351912668,1738838974181,-18.9702,0.00012054,2]
[351912669,1738838974207,-471.0298,0.00012642,2]
[351912677,1738839035887,-72.48639009,0.00012642,2]
[351912695,1738839038202,-10.55666581,0.00012642,2]
[351912697,1738839038211,-900.0,0.00013424,2]
[351912699,1738839038222,-7438.69753278,0.00013563,2]
[351912702,1738839038232,-300.0,0.00013672,2]
[351912704,1738839038241,-501.09183101,0.00013673,2]
[351912705,1738839038250,-621.70952141,0.00013673,2]
[351912707,1738839038259,-302.0,0.0001369,2]
[351912709,1738839038269,-500.0,0.00013697,2]
[351912711,1738839038278,-500.0,0.00013697,2]
[351912713,1738839038287,-316.40134557,0.00013697,2]
[351912715,1738839038297,-500.0,0.00013697,2]
[351912717,1738839038307,-500.0,0.00013697,2]
[351912719,1738839038316,-414.34723486,0.00013698,2]
[351912721,1738839038326,-230.22904638,0.00013698,2]
[351912724,1738839038337,-495.63186622,0.00013698,2]
[351912725,1738839038346,-553.45754452,0.00013698,2]
[351912727,1738839038355,-500.0,0.00013698,2]
[351912729,1738839038365,-500.0,0.00013698,2]
[351912731,1738839038374,-500.0,0.00013698,2]
[351912733,1738839038383,-500.0,0.00013698,2]
[351912735,1738839038392,-500.0,0.00013698,2]
[351912737,1738839038402,-162.77288074,0.00013698,2]
[351912739,1738839038413,-500.0,0.00013698,2]
[351912741,1738839038423,-500.0,0.00013698,2]
[351912743,1738839038436,-635.00070689,0.00013698,2]
[351912745,1738839038446,-500.0,0.00013698,2]
[351912747,1738839038456,-500.0,0.00013698,2]
[351912749,1738839038465,-500.0,0.00013698,2]
[351912751,1738839038475,-500.0,0.00013698,2]
[351912753,1738839038484,-500.0,0.00013698,2]
[351912755,1738839038494,-246.24229999,0.00013698,2]
[351912757,1738839038503,-500.0,0.00013698,2]
[351912759,1738839038512,-500.0,0.00013698,2]
[351912761,1738839038522,-500.0,0.00013698,2]
[351912763,1738839038531,-500.0,0.00013698,2]
[351912765,1738839038540,-500.0,0.00013698,2]
[351912767,1738839038550,-500.0,0.00013698,2]
[351912769,1738839038559,-500.0,0.00013698,2]
[351912771,1738839038569,-500.0,0.00013698,2]
[351912773,1738839038578,-500.0,0.00013698,2]
[351912775,1738839038587,-500.0,0.00013698,2]
[351912777,1738839038596,-500.0,0.00013698,2]
[351912779,1738839038605,-975.31,0.00013698,2]
[351912781,1738839038615,-526.82,0.00013698,2]
[351912783,1738839038625,-500.0,0.00013698,2]
[351912785,1738839038634,-624.4,0.00013698,2]
[351912787,1738839038643,-500.0,0.00013698,2]
[351912789,1738839038653,-500.0,0.00013698,2]
[351912791,1738839038663,-500.0,0.00013698,2]
[351912793,1738839038672,-647.49731656,0.00013698,2]
[351912795,1738839038684,-1676.92,0.00013698,2]
[351912797,1738839038693,-528.35,0.00013698,2]
[351912799,1738839038702,-306.81823847,0.00013698,2]
[351912801,1738839038711,-609.26487491,0.00013698,2]
[351912803,1738839038720,-500.0,0.00013698,2]
[351912805,1738839038729,-735.5,0.00013698,2]
[351912807,1738839038738,-390.85512548,0.00013698,2]
[351912809,1738839038747,-500.0,0.00013698,2]
[351912811,1738839038757,-500.0,0.00013698,2]
[351912813,1738839038766,-646.93084868,0.00013698,2]
[351912815,1738839038776,-500.0,0.00013698,2]
[351912817,1738839038785,-500.0,0.00013698,2]
[351912819,1738839038794,-500.0,0.00013698,2]
[351912821,1738839038804,-500.0,0.00013698,2]
[351912823,1738839038813,-226.57920029,0.00013698,2]
[351912825,1738839038822,-500.0,0.00013698,2]
[351912827,1738839038831,-500.0,0.00013698,2]
[351912829,1738839038841,-500.0,0.00013698,2]
[351912831,1738839038850,-500.0,0.00013698,2]
[351912833,1738839038859,-675.16,0.00013698,2]
[351912835,1738839038868,-500.0,0.00013698,2]
[351912836,1738839038878,-500.0,0.00013698,2]
[351912838,1738839038887,-500.0,0.00013698,2]
[351912841,1738839038897,-500.0,0.00013698,2]
[351912843,1738839038906,-500.0,0.00013698,2]
[351912845,1738839038915,-723.69,0.00013698,2]
[351912847,1738839038923,-1233.84,0.00013698,2]
[351912848,1738839038933,-500.0,0.00013698,2]
[351912850,1738839038942,-612.57339544,0.00013698,2]
[351912852,1738839038951,-500.0,0.00013698,2]
[351912854,1738839038961,-500.0,0.00013698,2]
[351912856,1738839038970,-1291.65,0.00013698,2]
[351912858,1738839038979,-500.0,0.00013698,2]
[351912859,1738839038989,-500.0,0.00013698,2]
[351912860,1738839038998,-500.0,0.00013698,2]
[351912861,1738839039007,-500.0,0.00013698,2]
[351912862,1738839039016,-500.0,0.00013698,2]
[351912863,1738839039025,-500.0,0.00013698,2]
[351912864,1738839039035,-643.62,0.00013698,2]
[351912865,1738839039044,-500.0,0.00013698,2]
[351912866,1738839039053,-500.0,0.00013698,2]
[351912867,1738839039062,-500.0,0.00013698,2]
[351912868,1738839039071,-500.0,0.00013698,2]
[351912869,1738839039080,-825.6,0.00013698,2]
[351912870,1738839039090,-1164.11,0.00013698,2]
[351912871,1738839039099,-500.0,0.00013698,2]
[351912872,1738839039108,-500.0,0.00013698,2]
[351912874,1738839039118,-500.0,0.00013698,2]
[351912876,1738839039127,-500.0,0.00013698,2]
[351912878,1738839039136,-500.0,0.00013698,2]
[351912880,1738839039145,-500.0,0.00013698,2]
[351912882,1738839039154,-646.91,0.00013698,2]
[351912884,1738839039164,-500.0,0.00013698,2]
[351912886,1738839039174,-1000.0,0.00013698,2]
[351912888,1738839039184,-500.0,0.00013698,2]
[351912890,1738839039193,-500.0,0.00013698,2]
[351912892,1738839039202,-500.0,0.00013698,2]
[351912894,1738839039212,-500.0,0.00013698,2]
[351912896,1738839039221,-1304.49,0.00013698,2]
[351912898,1738839039230,-196.03949853,0.00013698,2]
[351912900,1738839039239,-500.0,0.00013698,2]
[351912902,1738839039248,-500.0,0.00013698,2]
[351912904,1738839039258,-500.0,0.00013698,2]
[351912906,1738839039267,-500.0,0.00013698,2]
[351912908,1738839039276,-500.0,0.00013698,2]
[351912910,1738839039285,-665.48,0.00013698,2]
[351912912,1738839039294,-500.0,0.00013698,2]
[351912914,1738839039304,-500.0,0.00013698,2]
[351912916,1738839039313,-500.0,0.00013698,2]
[351912918,1738839039322,-500.0,0.00013698,2]
[351912920,1738839039331,-500.0,0.00013698,2]
[351912922,1738839039340,-500.0,0.00013698,2]
[351912924,1738839039350,-1602.25,0.00013698,2]
[351912926,1738839039359,-500.0,0.00013698,2]
[351912928,1738839039369,-500.0,0.00013698,2]
[351912930,1738839039378,-500.0,0.00013698,2]
[351912932,1738839039387,-500.0,0.00013698,2]
[351912934,1738839039396,-500.0,0.00013698,2]
[351912936,1738839039405,-500.0,0.00013698,2]
[351912938,1738839039420,-500.0,0.00013698,2]
[351912940,1738839039429,-500.0,0.00013698,2]
[351912942,1738839039440,-500.0,0.00013698,2]
[351912944,1738839039451,-500.0,0.00013698,2]
[351912946,1738839039460,-500.0,0.00013698,2]
[351912948,1738839039469,-691.48,0.00013698,2]
[351912950,1738839039478,-1215.81,0.00013698,2]
[351912952,1738839039487,-500.0,0.00013698,2]
[351912954,1738839039499,-500.0,0.00013698,2]
[351912956,1738839039508,-541.0886545,0.00013698,2]
[351912958,1738839039517,-641.21,0.00013698,2]
[351912960,1738839039525,-274.40048507,0.00013698,2]
[351912962,1738839039534,-500.0,0.00013698,2]
[351912964,1738839039543,-566.35461217,0.00013698,2]
[351912966,1738839039552,-500.0,0.00013698,2]
[351912968,1738839039562,-500.0,0.00013698,2]
[351912970,1738839039571,-500.0,0.00013698,2]
[351912972,1738839039581,-500.0,0.00013698,2]
[351912974,1738839039591,-500.0,0.00013698,2]
[351912976,1738839039600,-500.0,0.00013698,2]
[351912978,1738839039609,-500.0,0.00013698,2]
[351912980,1738839039619,-578.73,0.00013698,2]
[351912982,1738839039628,-534.68559103,0.00013698,2]
[351912984,1738839039638,-500.0,0.00013698,2]
[351912986,1738839039647,-500.0,0.00013698,2]
[351912988,1738839039656,-500.0,0.00013698,2]
[351912990,1738839039665,-500.0,0.00013698,2]
[351912992,1738839039674,-3576.0,0.00013698,2]
[351912994,1738839039684,-556.94651755,0.00013698,2]
[351912996,1738839039693,-705.64,0.00013698,2]
[351912998,1738839039702,-1030.99,0.00013698,2]
[351913000,1738839039712,-500.0,0.00013698,2]
[351913002,1738839039721,-8540.71,0.00013698,2]
[351913004,1738839039730,-500.0,0.00013698,2]
[351913005,1738839039739,-500.0,0.00013698,2]
[351913007,1738839039749,-500.0,0.00013698,2]
[351913009,1738839039758,-500.0,0.00013698,2]
[351913011,1738839039767,-500.0,0.00013698,2]
[351913013,1738839039777,-500.0,0.00013698,2]
[351913015,1738839039787,-500.0,0.00013698,2]
[351913017,1738839039796,-500.0,0.00013698,2]
[351913019,1738839039806,-500.0,0.00013698,2]
[351913021,1738839039816,-862.01,0.00013698,2]
[351913023,1738839039826,-500.0,0.00013698,2]
[351913025,1738839039835,-500.0,0.00013698,2]
[351913027,1738839039844,-500.0,0.00013698,2]
[351913029,1738839039854,-500.0,0.00013698,2]
[351913031,1738839039864,-500.0,0.00013698,2]
[351913033,1738839039873,-500.0,0.00013698,2]
[351913035,1738839039883,-500.0,0.00013698,2]
[351913036,1738839039892,-500.0,0.00013698,2]
[351913037,1738839039901,-1595.17,0.00013698,2]
[351913038,1738839039912,-500.0,0.00013698,2]
[351913039,1738839039922,-500.0,0.00013698,2]
[351913040,1738839039933,-1247.5,0.00013698,2]
[351913041,1738839039943,-500.0,0.00013698,2]
[351913042,1738839039952,-500.0,0.00013698,2]
[351913043,1738839039961,-500.0,0.00013698,2]
[351913044,1738839039971,-500.0,0.00013698,2]
[351913045,1738839039981,-4569.08,0.00013698,2]
[351913046,1738839039990,-500.0,0.00013698,2]
[351913047,1738839040000,-1258.02,0.00013698,2]
[351913048,1738839040009,-500.0,0.00013698,2]
[351913049,1738839040018,-500.0,0.00013698,2]
[351913050,1738839040028,-500.0,0.00013698,2]
[351913051,1738839040038,-500.0,0.00013698,2]
[351913052,1738839040047,-500.0,0.00013698,2]
[351913053,1738839040056,-2423.02,0.00013698,2]
[351913054,1738839040066,-1358.68,0.00013698,2]
[351913055,1738839040075,-500.0,0.00013698,2]
[351913056,1738839040084,-500.0,0.00013698,2]
[351913057,1738839040094,-2077.19,0.00013698,2]
[351913058,1738839040104,-28453.55,0.00013698,2]
[351913059,1738839040113,-6256.19,0.00013698,2]
[351913060,1738839040122,-16738.85,0.00013698,2]
[351913061,1738839040132,-500.0,0.00013698,2]
[351913062,1738839040141,-500.0,0.00013698,2]
[351913063,1738839040154,-500.0,0.00013698,2]
[351913064,1738839040163,-500.0,0.00013698,2]
[351913065,1738839040172,-500.0,0.00013698,2]
[351913066,1738839040182,-2428.01,0.00013698,2]
[351913067,1738839040193,-500.0,0.00013698,2]
[351913068,1738839040204,-500.0,0.00013698,2]
[351913069,1738839040213,-500.0,0.00013698,2]
[351913070,1738839040223,-1662.89,0.00013698,2]
[351913071,1738839040232,-500.0,0.00013698,2]
[351913072,1738839040242,-500.0,0.00013698,2]
[351913074,1738839040252,-500.0,0.00013698,2]
[351913075,1738839040262,-500.0,0.00013698,2]
[351913076,1738839040271,-500.0,0.00013698,2]
[351913078,1738839040280,-500.0,0.00013698,2]
[351913080,1738839040290,-500.0,0.00013698,2]
[351913081,1738839040300,-500.0,0.00013698,2]
[351913082,1738839040309,-500.0,0.00013698,2]
[351913083,1738839040318,-500.0,0.00013698,2]
[351913084,1738839040328,-500.0,0.00013698,2]
[351913085,1738839040337,-500.0,0.00013698,2]
[351913086,1738839040347,-500.0,0.00013698,2]
[351913087,1738839040356,-500.0,0.00013698,2]
[351913088,1738839040365,-1519.04,0.00013698,2]
[351913089,1738839040375,-500.0,0.00013698,2]
[351913090,1738839040384,-500.0,0.00013698,2]
[351913091,1738839040394,-539.1048513,0.00013698,2]
[351913092,1738839040403,-1479.2,0.00013698,2]
[351913093,1738839040414,-515.22791306,0.00013698,2]
[351913094,1738839040423,-798.79,0.00013698,2]
[351913095,1738839040435,-2284.29,0.00013698,2]
[351913096,1738839040445,-1419.49,0.00013698,2]
[351913097,1738839040454,-500.0,0.00013698,2]
[351913098,1738839040463,-508.13105513,0.00013698,2]
[351913099,1738839040472,-1386.64,0.00013698,2]
[351913100,1738839040481,-500.0,0.00013698,2]
[351913101,1738839040491,-500.0,0.00013698,2]
[351913102,1738839040501,-500.0,0.00013698,2]
[351913103,1738839040510,-500.0,0.00013698,2]
[351913104,1738839040519,-827.09,0.00013698,2]
[351913105,1738839040528,-500.0,0.00013698,2]
[351913106,1738839040538,-500.0,0.00013698,2]
[351913107,1738839040548,-500.0,0.00013698,2]
[351913108,1738839040558,-696.94,0.00013698,2]
[351913109,1738839040567,-500.0,0.00013698,2]
[351913110,1738839040577,-591.08176997,0.00013698,2]
[351913111,1738839040586,-500.0,0.00013698,2]
[351913112,1738839040595,-500.0,0.00013698,2]
[351913113,1738839040605,-500.0,0.00013698,2]
[351913114,1738839040615,-500.0,0.00013698,2]
[351913115,1738839040624,-500.0,0.00013698,2]
[351913116,1738839040633,-500.0,0.00013698,2]
[351913117,1738839040642,-500.0,0.00013698,2]
[351913118,1738839040652,-513.11074289,0.00013698,2]
[351913119,1738839040661,-500.0,0.00013698,2]
[351913120,1738839040671,-500.0,0.00013698,2]
[351913121,1738839040680,-500.0,0.00013698,2]
[351913122,1738839040693,-650.14,0.00013698,2]
[351913123,1738839040702,-500.0,0.00013698,2]
[351913124,1738839040711,-449.72302827,0.00013698,2]
[351913125,1738839040721,-840.33,0.00013698,2]
[351913126,1738839040731,-780.34,0.00013698,2]
[351913127,1738839040741,-3599.89,0.00013698,2]
[351913128,1738839040750,-500.0,0.00013698,2]
[351913129,1738839040760,-500.0,0.00013698,2]
[351913130,1738839040769,-500.0,0.00013698,2]
[351913131,1738839040779,-845.49,0.00013698,2]
[351913132,1738839040789,-500.0,0.00013698,2]
[351913133,1738839040798,-3363.64,0.00013698,2]
[351913134,1738839040807,-500.0,0.00013698,2]
[351913135,1738839040817,-500.0,0.00013698,2]
[351913136,1738839040826,-500.0,0.00013698,2]
[351913137,1738839040835,-1655.67,0.00013698,2]
[351913138,1738839040845,-3668.98,0.00013698,2]